[Event "*** Titled Tuesday 3|2 Blitz (Early)"]
[Site "Chess.com"]
[Date "2017.01.03"]
[Round "1"]
[White "capatl"]
[Black "Dlugy"]
[Result "0-1"]
[WhiteElo "2354"]
[BlackElo "2653"]
[TimeControl "180+2"]
[EndTime "11:08:24 PST"]
[Termination "Dlugy won by resignation"]

1. c4 {[%clk 0:03:02]} 1... Nf6 {[%clk 0:03:00.3]} 2. Nc3 {[%clk 0:03:02.6]}
2... g6 {[%clk 0:03:01.7]} 3. g3 {[%clk 0:03:01.3]} 3... Bg7 {[%clk 0:03:02.3]}
4. Bg2 {[%clk 0:03:02]} 4... O-O {[%clk 0:03:04.2]} 5. Nf3 {[%clk 0:02:56.8]}
5... d6 {[%clk 0:03:05.8]} 6. d4 {[%clk 0:02:55.3]} 6... c6 {[%clk 0:03:06.9]}
7. O-O {[%clk 0:02:56.3]} 7... Qa5 {[%clk 0:03:08.1]} 8. h3 {[%clk 0:02:50]}
8... e5 {[%clk 0:03:08]} 9. Be3 {[%clk 0:02:46.2]} 9... Nbd7 {[%clk 0:02:55.7]}
10. a3 {[%clk 0:02:43.3]} 10... e4 {[%clk 0:02:48.7]} 11. b4 {[%clk 0:02:31.1]}
11... Qd8 {[%clk 0:02:48.2]} 12. Nd2 {[%clk 0:02:28.5]} 12... d5 {[%clk
0:02:49.5]} 13. Bg5 {[%clk 0:02:23.7]} 13... h6 {[%clk 0:02:48.8]} 14. Bxf6
{[%clk 0:02:21.9]} 14... Nxf6 {[%clk 0:02:49.9]} 15. e3 {[%clk 0:02:22]} 15...
Be6 {[%clk 0:02:47.9]} 16. Qe2 {[%clk 0:02:13.2]} 16... Qd7 {[%clk 0:02:41.7]}
17. Kh2 {[%clk 0:02:13.6]} 17... h5 {[%clk 0:02:42.5]} 18. Nb3 {[%clk
0:02:09.2]} 18... b6 {[%clk 0:02:35.7]} 19. cxd5 {[%clk 0:02:04.8]} 19... cxd5
{[%clk 0:02:35]} 20. Qb5 {[%clk 0:02:03.5]} 20... Rfc8 {[%clk 0:02:34]} 21. Qxd7
{[%clk 0:01:56.9]} 21... Bxd7 {[%clk 0:02:27.7]} 22. Rfc1 {[%clk 0:01:57.7]}
22... Bf8 {[%clk 0:02:25.9]} 23. Bf1 {[%clk 0:01:52.5]} 23... a6 {[%clk
0:02:18.3]} 24. Ne2 {[%clk 0:01:31]} 24... Bd6 {[%clk 0:01:58.9]} 25. Rxc8+
{[%clk 0:01:25.2]} 25... Rxc8 {[%clk 0:01:59.6]} 26. Rc1 {[%clk 0:01:25]} 26...
h4 {[%clk 0:02:00.8]} 27. Rxc8+ {[%clk 0:01:23]} 27... Bxc8 {[%clk 0:02:01.9]}
28. Kg2 {[%clk 0:01:16.2]} 28... hxg3 {[%clk 0:02:02.9]} 29. Nxg3 {[%clk
0:01:15.4]} 29... Ne8 {[%clk 0:01:58.6]} 30. Ne2 {[%clk 0:01:11.2]} 30... Nc7
{[%clk 0:01:58.2]} 31. Nc3 {[%clk 0:01:12.2]} 31... f5 {[%clk 0:01:55.2]} 32.
Na4 {[%clk 0:01:12.3]} 32... Na8 {[%clk 0:01:53.1]} 33. Nd2 {[%clk 0:01:10.9]}
33... Kf7 {[%clk 0:01:51.4]} 34. Nb1 {[%clk 0:01:11.8]} 34... g5 {[%clk
0:01:36]} 35. Nbc3 {[%clk 0:01:12.7]} 35... Ke6 {[%clk 0:01:36.1]} 36. b5 {[%clk
0:01:03.7]} 36... a5 {[%clk 0:01:33.5]} 37. Nb1 {[%clk 0:00:57]} 37... f4 {[%clk
0:01:34.8]} 38. Nac3 {[%clk 0:00:57.1]} 38... f3+ {[%clk 0:01:34.2]} 39. Kg1
{[%clk 0:00:56.2]} 39... Bd7 {[%clk 0:01:20.6]} 40. a4 {[%clk 0:00:52.7]} 40...
Nc7 {[%clk 0:01:18.6]} 41. Nd2 {[%clk 0:00:52.8]} 41... Bb4 {[%clk 0:01:19.4]}
42. Ndxe4 {[%clk 0:00:45.2]} 42... dxe4 {[%clk 0:01:19.8]} 43. Nxe4 {[%clk
0:00:46.4]} 43... Be7 {[%clk 0:01:19.5]} 44. Bc4+ {[%clk 0:00:46.7]} 44... Kf5
{[%clk 0:01:16.8]} 45. Ng3+ {[%clk 0:00:42.9]} 45... Kg6 {[%clk 0:01:17.2]} 46.
Kh2 {[%clk 0:00:42.1]} 46... Bd6 {[%clk 0:01:17.3]} 47. Bd3+ {[%clk 0:00:41.9]}
47... Kf6 {[%clk 0:01:13.2]} 48. Be4 {[%clk 0:00:43.1]} 48... Be6 {[%clk
0:01:11.2]} 49. Bxf3 {[%clk 0:00:42.6]} 49... Bb3 {[%clk 0:01:12.1]} 50. Kg2
{[%clk 0:00:42.2]} 50... Bxg3 {[%clk 0:01:12.8]} 51. Kxg3 {[%clk 0:00:39.2]}
51... Bxa4 {[%clk 0:01:14.7]} 52. Bc6 {[%clk 0:00:39.7]} 52... Bxb5 {[%clk
0:01:15.8]} 53. Bf3 {[%clk 0:00:38.8]} 53... a4 {[%clk 0:01:15]} 54. e4 {[%clk
0:00:40.2]} 54... a3 {[%clk 0:01:15]} 55. e5+ {[%clk 0:00:42.1]} 55... Ke7
{[%clk 0:01:16]} 0-1

[Event "*** Titled Tuesday 3|2 Blitz (Early)"]
[Site "Chess.com"]
[Date "2017.01.03"]
[Round "1"]
[White "Mepetmepe"]
[Black "Zlatan56"]
[Result "0-1"]
[WhiteElo "2376"]
[BlackElo "2679"]
[TimeControl "180+2"]
[EndTime "11:08:25 PST"]
[Termination "Zlatan56 won by checkmate"]

1. d4 {[%clk 0:03:02]} 1... Nf6 {[%clk 0:02:59.6]} 2. Bf4 {[%clk 0:03:03]} 2...
d5 {[%clk 0:02:59.6]} 3. e3 {[%clk 0:03:03.8]} 3... c5 {[%clk 0:03:00.6]} 4. c3
{[%clk 0:03:05]} 4... Nc6 {[%clk 0:03:01.6]} 5. Nf3 {[%clk 0:03:04.8]} 5... e6
{[%clk 0:02:58.1]} 6. Nbd2 {[%clk 0:03:04.3]} 6... Bd6 {[%clk 0:02:58.9]} 7. Bg3
{[%clk 0:03:05]} 7... O-O {[%clk 0:02:59.6]} 8. Bd3 {[%clk 0:03:05.3]} 8... b6
{[%clk 0:02:59.3]} 9. Qe2 {[%clk 0:02:58.4]} 9... Bb7 {[%clk 0:02:59.6]} 10. O-O
{[%clk 0:02:57.6]} 10... Re8 {[%clk 0:02:56.9]} 11. Ne5 {[%clk 0:02:49.7]} 11...
Qc7 {[%clk 0:02:53.3]} 12. f4 {[%clk 0:02:39.6]} 12... Ne7 {[%clk 0:02:53.7]}
13. Bh4 {[%clk 0:02:23.9]} 13... Ne4 {[%clk 0:02:52.9]} 14. Bxe7 {[%clk
0:02:12.7]} 14... Rxe7 {[%clk 0:02:52.8]} 15. Bxe4 {[%clk 0:02:13.3]} 15... dxe4
{[%clk 0:02:52.3]} 16. a4 {[%clk 0:02:08]} 16... Rd8 {[%clk 0:02:49.6]} 17. a5
{[%clk 0:02:08.5]} 17... cxd4 {[%clk 0:02:42]} 18. exd4 {[%clk 0:02:02.8]} 18...
f6 {[%clk 0:02:39]} 19. Nec4 {[%clk 0:02:01.3]} 19... Bxf4 {[%clk 0:02:38.8]}
20. axb6 {[%clk 0:01:59.1]} 20... axb6 {[%clk 0:02:39.3]} 21. Nxe4 {[%clk
0:01:04.1]} 21... Bxh2+ {[%clk 0:02:39]} 22. Kh1 {[%clk 0:01:05.4]} 22... Bf4
{[%clk 0:02:30.1]} 23. Ncd2 {[%clk 0:00:54.6]} 23... e5 {[%clk 0:02:29.3]} 24.
Qg4 {[%clk 0:00:46.5]} 24... Bxd2 {[%clk 0:02:26.6]} 25. Nxd2 {[%clk 0:00:44.8]}
25... exd4 {[%clk 0:02:27.7]} 26. cxd4 {[%clk 0:00:42.4]} 26... Qc2 {[%clk
0:02:28.2]} 27. Rae1 {[%clk 0:00:23.4]} 27... Rxe1 {[%clk 0:02:25.1]} 28. Rxe1
{[%clk 0:00:25.3]} 28... Bd5 {[%clk 0:02:25.1]} 29. Nf3 {[%clk 0:00:21.2]} 29...
Qg6 {[%clk 0:02:21.6]} 30. Qh3 {[%clk 0:00:12.3]} 30... Re8 {[%clk 0:02:18.5]}
31. Rxe8+ {[%clk 0:00:09.2]} 31... Qxe8 {[%clk 0:02:18.6]} 32. Ng1 {[%clk
0:00:10.4]} 32... h6 {[%clk 0:02:18]} 33. Qg3 {[%clk 0:00:11.4]} 33... Qe4
{[%clk 0:02:18.7]} 34. Nh3 {[%clk 0:00:12.5]} 34... Qxd4 {[%clk 0:02:18.3]} 35.
Nf4 {[%clk 0:00:13.7]} 35... Bf7 {[%clk 0:02:18.4]} 36. Kh2 {[%clk 0:00:07.2]}
36... Qxb2 {[%clk 0:02:18.5]} 37. Qe3 {[%clk 0:00:08.5]} 37... Qe5 {[%clk
0:02:19.2]} 38. Qxe5 {[%clk 0:00:02.3]} 38... fxe5 {[%clk 0:02:19.4]} 39. Nd3
{[%clk 0:00:04.2]} 39... e4 {[%clk 0:02:20.3]} 40. Nb4 {[%clk 0:00:05.7]} 40...
g5 {[%clk 0:02:18.7]} 41. Kg3 {[%clk 0:00:07.6]} 41... Kg7 {[%clk 0:02:19.8]}
42. Kf2 {[%clk 0:00:09.5]} 42... Kf6 {[%clk 0:02:20.9]} 43. Ke3 {[%clk
0:00:11.4]} 43... Kf5 {[%clk 0:02:20.8]} 44. Nc6 {[%clk 0:00:06.4]} 44... Bd5
{[%clk 0:02:21.6]} 45. Ne7+ {[%clk 0:00:07]} 45... Ke6 {[%clk 0:02:22.4]} 46.
Nc8 {[%clk 0:00:07.3]} 46... b5 {[%clk 0:02:23.1]} 47. Nb6 {[%clk 0:00:08.3]}
47... b4 {[%clk 0:02:24.4]} 48. Na4 {[%clk 0:00:09.8]} 48... b3 {[%clk
0:02:24.4]} 49. Kd4 {[%clk 0:00:11.3]} 49... Kd6 {[%clk 0:02:22.1]} 50. g3
{[%clk 0:00:09.2]} 50... h5 {[%clk 0:02:21.6]} 51. Ke3 {[%clk 0:00:04]} 51... h4
{[%clk 0:02:21]} 52. gxh4 {[%clk 0:00:05.9]} 52... gxh4 {[%clk 0:02:22.4]} 53.
Kf4 {[%clk 0:00:07.8]} 53... h3 {[%clk 0:02:21]} 54. Kg3 {[%clk 0:00:09.1]}
54... e3 {[%clk 0:02:22]} 55. Nc3 {[%clk 0:00:09.6]} 55... b2 {[%clk 0:02:22.3]}
56. Kxh3 {[%clk 0:00:10.5]} 56... e2 {[%clk 0:02:22.3]} 57. Nxe2 {[%clk
0:00:10.6]} 57... b1=Q {[%clk 0:02:23.2]} 58. Nf4 {[%clk 0:00:12]} 58... Qh1+
{[%clk 0:02:23.2]} 59. Kg3 {[%clk 0:00:12.7]} 59... Qf3+ {[%clk 0:02:24]} 60.
Kh4 {[%clk 0:00:14.2]} 60... Qxf4+ {[%clk 0:02:25.2]} 61. Kh5 {[%clk 0:00:15.8]}
61... Bf7# {[%clk 0:02:24.2]} 0-1

[Event "*** Titled Tuesday 3|2 Blitz (Early)"]
[Site "Chess.com"]
[Date "2017.01.03"]
[Round "1"]
[White "hsskoo"]
[Black "jb2mix"]
[Result "0-1"]
[WhiteElo "1906"]
[BlackElo "2398"]
[TimeControl "180+2"]
[EndTime "11:08:28 PST"]
[Termination "jb2mix won on time"]

1. e4 {[%clk 0:03:00]} 1... e5 {[%clk 0:02:40.1]} 2. Nf3 {[%clk 0:02:59.3]} 2...
Nc6 {[%clk 0:02:40.8]} 3. Bb5 {[%clk 0:02:58.6]} 3... a6 {[%clk 0:02:41.3]} 4.
Ba4 {[%clk 0:02:58.6]} 4... Nf6 {[%clk 0:02:41.4]} 5. O-O {[%clk 0:02:58.6]}
5... b5 {[%clk 0:02:43]} 6. Bb3 {[%clk 0:02:58.7]} 6... Bb7 {[%clk 0:02:44]} 7.
Re1 {[%clk 0:02:59.5]} 7... Bc5 {[%clk 0:02:42.9]} 8. c3 {[%clk 0:02:58.8]} 8...
d6 {[%clk 0:02:44]} 9. d4 {[%clk 0:02:48]} 9... Bb6 {[%clk 0:02:44.7]} 10. a4
{[%clk 0:02:01.6]} 10... O-O {[%clk 0:02:42.1]} 11. axb5 {[%clk 0:02:00.2]}
11... axb5 {[%clk 0:02:40.4]} 12. Rxa8 {[%clk 0:01:59.5]} 12... Qxa8 {[%clk
0:02:42.3]} 13. Bg5 {[%clk 0:01:49.1]} 13... Qd8 {[%clk 0:02:03.8]} 14. Na3
{[%clk 0:01:44.9]} 14... exd4 {[%clk 0:01:11.5]} 15. cxd4 {[%clk 0:01:41.1]}
15... h6 {[%clk 0:01:12.4]} 16. Bh4 {[%clk 0:01:35.5]} 16... Re8 {[%clk
0:01:00.1]} 17. Nxb5 {[%clk 0:01:22.3]} 17... g5 {[%clk 0:00:58.1]} 18. Nxg5
{[%clk 0:01:09.2]} 18... hxg5 {[%clk 0:00:58]} 19. Bxg5 {[%clk 0:01:06.8]} 19...
Kg7 {[%clk 0:00:53.4]} 20. Qf3 {[%clk 0:01:04.7]} 20... Nxd4 {[%clk 0:00:50.5]}
21. Qg3 {[%clk 0:00:55.5]} 21... Nh5 {[%clk 0:00:37.7]} 22. Qh4 {[%clk
0:00:52.9]} 22... f6 {[%clk 0:00:21.7]} 23. Qxh5 {[%clk 0:00:53.1]} 23... fxg5
{[%clk 0:00:23.6]} 24. Qf7+ {[%clk 0:00:52.4]} 24... Kh6 {[%clk 0:00:24.7]} 25.
Nxd4 {[%clk 0:00:43.5]} 25... Bxd4 {[%clk 0:00:25]} 26. h4 {[%clk 0:00:18.1]}
26... gxh4 {[%clk 0:00:21.5]} 27. Rd1 {[%clk 0:00:07.8]} 27... Rf8 {[%clk
0:00:21.5]} 0-1

[Event "*** Titled Tuesday 3|2 Blitz (Early)"]
[Site "Chess.com"]
[Date "2017.01.03"]
[Round "1"]
[White "ChristopherYoo"]
[Black "AndrBaryshpolets"]
[Result "1-0"]
[WhiteElo "2067"]
[BlackElo "2413"]
[TimeControl "180+2"]
[EndTime "11:08:57 PST"]
[Termination "ChristopherYoo won by resignation"]

1. e4 {[%clk 0:03:02]} 1... e5 {[%clk 0:03:00.2]} 2. Nf3 {[%clk 0:03:02.9]} 2...
Nc6 {[%clk 0:03:01.3]} 3. Bb5 {[%clk 0:03:02.5]} 3... Nf6 {[%clk 0:03:01.4]} 4.
O-O {[%clk 0:03:03.1]} 4... Nxe4 {[%clk 0:03:02.4]} 5. d4 {[%clk 0:03:00.1]}
5... Nd6 {[%clk 0:03:03.4]} 6. Bxc6 {[%clk 0:03:00.9]} 6... dxc6 {[%clk
0:03:05.3]} 7. dxe5 {[%clk 0:03:01.9]} 7... Nf5 {[%clk 0:03:05.2]} 8. Qxd8+
{[%clk 0:03:02.6]} 8... Kxd8 {[%clk 0:03:07.1]} 9. Rd1+ {[%clk 0:03:03.2]} 9...
Ke8 {[%clk 0:03:07.9]} 10. Nc3 {[%clk 0:02:53.5]} 10... Ne7 {[%clk 0:03:08.5]}
11. h3 {[%clk 0:02:13.7]} 11... Ng6 {[%clk 0:03:05.3]} 12. Be3 {[%clk
0:02:03.4]} 12... Bb4 {[%clk 0:02:49]} 13. a3 {[%clk 0:01:44.6]} 13... Bxc3
{[%clk 0:02:46.2]} 14. bxc3 {[%clk 0:01:45.9]} 14... b6 {[%clk 0:02:40.1]} 15.
Rd2 {[%clk 0:01:30.3]} 15... Nf8 {[%clk 0:01:28.8]} 16. Rad1 {[%clk 0:01:08.7]}
16... Bd7 {[%clk 0:01:05.3]} 17. Ng5 {[%clk 0:00:39.9]} 17... Be6 {[%clk
0:00:42.8]} 18. Nxe6 {[%clk 0:00:29.7]} 18... Nxe6 {[%clk 0:00:43.5]} 19. f4
{[%clk 0:00:30.7]} 19... g6 {[%clk 0:00:30.7]} 20. g4 {[%clk 0:00:30.9]} 20...
Rd8 {[%clk 0:00:31.3]} 21. f5 {[%clk 0:00:27.9]} 21... Rxd2 {[%clk 0:00:31.1]}
22. Rxd2 {[%clk 0:00:27.5]} 22... gxf5 {[%clk 0:00:31.1]} 23. gxf5 {[%clk
0:00:28.5]} 23... Rg8+ {[%clk 0:00:31.7]} 24. Kf1 {[%clk 0:00:25.5]} 24... Nd8
{[%clk 0:00:29.4]} 25. Bf4 {[%clk 0:00:22]} 25... Nb7 {[%clk 0:00:18.2]} 26. Kf2
{[%clk 0:00:18.8]} 26... Nc5 {[%clk 0:00:17.9]} 27. Kf3 {[%clk 0:00:19.6]} 27...
Rg1 {[%clk 0:00:17.7]} 28. Be3 {[%clk 0:00:17.9]} 28... Rf1+ {[%clk 0:00:16.3]}
29. Kg4 {[%clk 0:00:17.5]} 29... Ne4 {[%clk 0:00:16.5]} 30. Rd3 {[%clk
0:00:16.8]} 30... c5 {[%clk 0:00:15.4]} 31. h4 {[%clk 0:00:14.9]} 31... f6
{[%clk 0:00:11.4]} 32. e6 {[%clk 0:00:13.1]} 32... Nd6 {[%clk 0:00:09.5]} 33.
Bf4 {[%clk 0:00:12.2]} 33... Rg1+ {[%clk 0:00:10.4]} 34. Rg3 {[%clk 0:00:10.6]}
34... h5+ {[%clk 0:00:10.4]} 35. Kxh5 {[%clk 0:00:09.9]} 35... Rxg3 {[%clk
0:00:11.3]} 36. Bxg3 {[%clk 0:00:11]} 36... Nxf5 {[%clk 0:00:13]} 37. Bxc7
{[%clk 0:00:11.8]} 37... Ng7+ {[%clk 0:00:13.1]} 38. Kg6 {[%clk 0:00:11.3]}
38... Nxe6 {[%clk 0:00:15]} 39. Bb8 {[%clk 0:00:12.5]} 39... a6 {[%clk
0:00:10.8]} 40. Kxf6 {[%clk 0:00:12.9]} 40... Nf8 {[%clk 0:00:10.5]} 41. h5
{[%clk 0:00:13.7]} 41... Nd7+ {[%clk 0:00:11.7]} 42. Kg7 {[%clk 0:00:12.9]}
42... Nxb8 {[%clk 0:00:13.6]} 43. h6 {[%clk 0:00:14.2]} 43... Nd7 {[%clk
0:00:12.8]} 44. h7 {[%clk 0:00:15.2]} 1-0

[Event "*** Titled Tuesday 3|2 Blitz (Early)"]
[Site "Chess.com"]
[Date "2017.01.03"]
[Round "1"]
[White "Blitzstream"]
[Black "HovmoellerHest"]
[Result "1-0"]
[WhiteElo "2529"]
[BlackElo "2227"]
[TimeControl "180+2"]
[EndTime "11:09:02 PST"]
[Termination "Blitzstream won by resignation"]

1. d4 {[%clk 0:03:02]} 1... Nf6 {[%clk 0:03:00.5]} 2. Bg5 {[%clk 0:03:02.4]}
2... Ne4 {[%clk 0:02:55.4]} 3. Bh4 {[%clk 0:03:03.6]} 3... d5 {[%clk 0:02:48.2]}
4. f3 {[%clk 0:03:04.6]} 4... Nf6 {[%clk 0:02:41.6]} 5. c4 {[%clk 0:03:02.9]}
5... c6 {[%clk 0:02:35.9]} 6. Nc3 {[%clk 0:03:03.5]} 6... dxc4 {[%clk
0:02:25.9]} 7. e4 {[%clk 0:02:58.2]} 7... b5 {[%clk 0:02:19.3]} 8. a4 {[%clk
0:02:59.1]} 8... b4 {[%clk 0:02:14.8]} 9. Nb1 {[%clk 0:02:59.8]} 9... Be6 {[%clk
0:02:03.9]} 10. a5 {[%clk 0:02:22.7]} 10... g6 {[%clk 0:01:48.6]} 11. Bf2 {[%clk
0:02:19.8]} 11... Bg7 {[%clk 0:01:42.8]} 12. Nd2 {[%clk 0:02:20.3]} 12... O-O
{[%clk 0:01:38.4]} 13. Bxc4 {[%clk 0:02:18.1]} 13... Bxc4 {[%clk 0:01:37]} 14.
Nxc4 {[%clk 0:02:20]} 14... Na6 {[%clk 0:01:31.9]} 15. Ne2 {[%clk 0:02:19.2]}
15... e6 {[%clk 0:01:24.6]} 16. O-O {[%clk 0:02:19.1]} 16... Qe7 {[%clk
0:01:15.4]} 17. Ne5 {[%clk 0:02:08.5]} 17... Rfc8 {[%clk 0:01:12.3]} 18. Qd3
{[%clk 0:02:08.2]} 18... Qb7 {[%clk 0:01:08.5]} 19. Rfc1 {[%clk 0:02:08]} 19...
Ne8 {[%clk 0:01:04.1]} 20. Nc4 {[%clk 0:02:03.7]} 20... Nac7 {[%clk 0:01:01.6]}
21. Bg3 {[%clk 0:01:56.5]} 21... Qb5 {[%clk 0:00:57.7]} 22. Qb3 {[%clk
0:01:42.2]} 22... Rd8 {[%clk 0:00:52.7]} 23. Rd1 {[%clk 0:01:40.2]} 23... Rac8
{[%clk 0:00:51.7]} 24. a6 {[%clk 0:01:25.1]} 24... Nxa6 {[%clk 0:00:32]} 25. Ra5
{[%clk 0:01:25.5]} 25... Qb7 {[%clk 0:00:33.1]} 26. Qa4 {[%clk 0:01:19.1]} 26...
Nac7 {[%clk 0:00:21]} 27. Rxa7 {[%clk 0:01:20]} 27... Qb5 {[%clk 0:00:22.7]} 28.
b3 {[%clk 0:01:13.8]} 28... Qxa4 {[%clk 0:00:22.6]} 29. Rxa4 {[%clk 0:01:15.7]}
29... Nb5 {[%clk 0:00:21.5]} 30. Bf2 {[%clk 0:00:49.8]} 30... Nxd4 {[%clk
0:00:22.3]} 31. Nxd4 {[%clk 0:00:46]} 31... c5 {[%clk 0:00:22.5]} 32. Kf1 {[%clk
0:00:38.3]} 32... Nc7 {[%clk 0:00:14.8]} 33. Ke2 {[%clk 0:00:35.9]} 33... Bxd4
{[%clk 0:00:13.8]} 34. Bxd4 {[%clk 0:00:36.6]} 34... cxd4 {[%clk 0:00:14.7]} 35.
Rxb4 {[%clk 0:00:37.3]} 35... Na6 {[%clk 0:00:16]} 36. Rb5 {[%clk 0:00:35.7]}
36... Nc5 {[%clk 0:00:15.4]} 37. Ne5 {[%clk 0:00:19.5]} 37... f6 {[%clk
0:00:15.8]} 38. Ng4 {[%clk 0:00:20]} 38... d3+ {[%clk 0:00:13.5]} 39. Ke3 {[%clk
0:00:20.7]} 39... Rf8 {[%clk 0:00:13]} 40. b4 {[%clk 0:00:20.7]} 40... Na4
{[%clk 0:00:14.3]} 41. Rxd3 {[%clk 0:00:21]} 41... Nb2 {[%clk 0:00:14.3]} 42.
Rd7 {[%clk 0:00:21.4]} 42... f5 {[%clk 0:00:15.7]} 43. Nh6+ {[%clk 0:00:22.1]}
43... Kh8 {[%clk 0:00:16.6]} 44. Rbb7 {[%clk 0:00:23.8]} 44... Nc4+ {[%clk
0:00:16.9]} 45. Kf2 {[%clk 0:00:24.4]} 1-0

[Event "*** Titled Tuesday 3|2 Blitz (Early)"]
[Site "Chess.com"]
[Date "2017.01.03"]
[Round "1"]
[White "Wolverine_master"]
[Black "poummba"]
[Result "0-1"]
[WhiteElo "2030"]
[BlackElo "2428"]
[TimeControl "180+2"]
[EndTime "11:09:12 PST"]
[Termination "poummba won on time"]

1. Nf3 {[%clk 0:02:57.8]} 1... g6 {[%clk 0:03:00.5]} 2. g3 {[%clk 0:02:58.3]}
2... Bg7 {[%clk 0:03:01.8]} 3. Bg2 {[%clk 0:02:59.8]} 3... d6 {[%clk 0:03:03.2]}
4. c4 {[%clk 0:03:00.7]} 4... e5 {[%clk 0:03:04.6]} 5. O-O {[%clk 0:03:02.2]}
5... Nc6 {[%clk 0:03:05.7]} 6. Nc3 {[%clk 0:03:03.2]} 6... Nf6 {[%clk
0:03:07.1]} 7. d3 {[%clk 0:03:04.6]} 7... O-O {[%clk 0:03:08.2]} 8. Rb1 {[%clk
0:03:05.8]} 8... a5 {[%clk 0:03:09.4]} 9. a3 {[%clk 0:03:06.9]} 9... Nd4 {[%clk
0:03:10.7]} 10. Bg5 {[%clk 0:02:51.9]} 10... c6 {[%clk 0:03:06]} 11. b4 {[%clk
0:02:51]} 11... axb4 {[%clk 0:03:06.6]} 12. axb4 {[%clk 0:02:52.9]} 12... h6
{[%clk 0:03:04.9]} 13. Bxf6 {[%clk 0:02:53.5]} 13... Bxf6 {[%clk 0:03:05.8]} 14.
Nd2 {[%clk 0:02:41.2]} 14... Ra3 {[%clk 0:02:51.1]} 15. Rc1 {[%clk 0:01:58]}
15... Bg7 {[%clk 0:02:45.9]} 16. e3 {[%clk 0:01:57.3]} 16... Ne6 {[%clk
0:02:39]} 17. b5 {[%clk 0:01:58.1]} 17... Nc5 {[%clk 0:02:40.3]} 18. Ndb1 {[%clk
0:01:20.2]} 18... Ra1 {[%clk 0:02:32.6]} 19. bxc6 {[%clk 0:01:20.8]} 19... bxc6
{[%clk 0:02:34.5]} 20. Bxc6 {[%clk 0:01:21.8]} 20... Bh3 {[%clk 0:02:34]} 21.
Bg2 {[%clk 0:01:21.9]} 21... Bxg2 {[%clk 0:02:34.7]} 22. Kxg2 {[%clk 0:01:23.8]}
22... Qa8+ {[%clk 0:02:24.4]} 23. Nd5 {[%clk 0:01:23.9]} 23... e4 {[%clk
0:02:25.8]} 24. dxe4 {[%clk 0:01:02.2]} 24... Nxe4 {[%clk 0:02:26.9]} 25. Nd2
{[%clk 0:00:48.6]} 25... Rxc1 {[%clk 0:02:03.9]} 26. Qxc1 {[%clk 0:00:46.7]}
26... Nc5 {[%clk 0:02:01.6]} 27. Qc2 {[%clk 0:00:41]} 27... Rb8 {[%clk
0:01:47.5]} 28. Rb1 {[%clk 0:00:41.2]} 28... Re8 {[%clk 0:01:43.8]} 29. Nb3
{[%clk 0:00:27.4]} 29... Ne4 {[%clk 0:01:35.5]} 30. Nc7 {[%clk 0:00:15.6]} 30...
Qc6 {[%clk 0:01:36.5]} 31. Nxe8 {[%clk 0:00:16.2]} 31... Ng5+ {[%clk 0:01:36]}
32. e4 {[%clk 0:00:16.3]} 32... Nxe4 {[%clk 0:01:34.1]} 33. f3 {[%clk
0:00:16.6]} 33... Ng5 {[%clk 0:01:35]} 34. Rf1 {[%clk 0:00:16.9]} 34... Qxe8
{[%clk 0:01:35.6]} 35. Qd3 {[%clk 0:00:16]} 35... Qa4 {[%clk 0:01:29.9]} 36. Nd4
{[%clk 0:00:16.1]} 36... Qd7 {[%clk 0:01:20.1]} 37. g4 {[%clk 0:00:15]} 37...
Qa7 {[%clk 0:01:18.4]} 38. Rf2 {[%clk 0:00:14.4]} 38... Bxd4 {[%clk 0:01:06.5]}
39. Re2 {[%clk 0:00:13.1]} 39... Ne6 {[%clk 0:01:01.3]} 40. Qe4 {[%clk
0:00:11.4]} 40... Be5 {[%clk 0:00:57]} 41. Rd2 {[%clk 0:00:05.7]} 41... Nf4+
{[%clk 0:00:54.3]} 42. Kf1 {[%clk 0:00:05]} 42... Qa1+ {[%clk 0:00:51.9]} 0-1

[Event "*** Titled Tuesday 3|2 Blitz (Early)"]
[Site "Chess.com"]
[Date "2017.01.03"]
[Round "1"]
[White "ZhuChenChess"]
[Black "Tesla37"]
[Result "0-1"]
[WhiteElo "2337"]
[BlackElo "2616"]
[TimeControl "180+2"]
[EndTime "11:09:13 PST"]
[Termination "Tesla37 won by resignation"]

1. d4 {[%clk 0:03:02]} 1... Nf6 {[%clk 0:03:00.1]} 2. c4 {[%clk 0:03:03]} 2...
d6 {[%clk 0:03:01.1]} 3. Nc3 {[%clk 0:03:02.4]} 3... Nbd7 {[%clk 0:03:02.5]} 4.
e4 {[%clk 0:03:01.3]} 4... e5 {[%clk 0:03:03.2]} 5. Nf3 {[%clk 0:02:57]} 5... c6
{[%clk 0:03:02.8]} 6. Be2 {[%clk 0:02:58]} 6... g6 {[%clk 0:03:02.9]} 7. O-O
{[%clk 0:02:58.9]} 7... Bg7 {[%clk 0:03:03.9]} 8. Re1 {[%clk 0:02:59.4]} 8...
O-O {[%clk 0:03:04.6]} 9. Bf1 {[%clk 0:02:57.5]} 9... h6 {[%clk 0:03:04.7]} 10.
h3 {[%clk 0:02:39.6]} 10... Nh7 {[%clk 0:03:04.6]} 11. dxe5 {[%clk 0:02:31.7]}
11... dxe5 {[%clk 0:03:04.4]} 12. b3 {[%clk 0:02:29.3]} 12... Qe7 {[%clk
0:03:03]} 13. a4 {[%clk 0:02:28.8]} 13... a5 {[%clk 0:02:52.6]} 14. Ba3 {[%clk
0:02:28.6]} 14... Nc5 {[%clk 0:02:53.9]} 15. Qc2 {[%clk 0:02:13.6]} 15... b6
{[%clk 0:02:52.7]} 16. b4 {[%clk 0:01:40.2]} 16... axb4 {[%clk 0:02:50.7]} 17.
Bxb4 {[%clk 0:01:41.4]} 17... Be6 {[%clk 0:02:38.5]} 18. Reb1 {[%clk 0:01:40.9]}
18... Rfd8 {[%clk 0:02:31]} 19. a5 {[%clk 0:01:34.7]} 19... bxa5 {[%clk
0:02:29.5]} 20. Ba3 {[%clk 0:01:35.9]} 20... Qa7 {[%clk 0:02:26.9]} 21. Bb4
{[%clk 0:01:27.8]} 21... Nb7 {[%clk 0:02:22.4]} 22. Qa4 {[%clk 0:01:19.2]} 22...
Rdc8 {[%clk 0:01:39.1]} 23. Ba3 {[%clk 0:00:26]} 23... Nc5 {[%clk 0:01:35.7]}
24. Qc2 {[%clk 0:00:16.4]} 24... Rcb8 {[%clk 0:01:34.5]} 25. Na4 {[%clk
0:00:16.8]} 25... Nxa4 {[%clk 0:01:30.7]} 26. Qxa4 {[%clk 0:00:17.3]} 26... Qc7
{[%clk 0:01:29.5]} 27. Bc5 {[%clk 0:00:16.7]} 27... Rxb1 {[%clk 0:01:20.5]} 28.
Rxb1 {[%clk 0:00:17.5]} 28... Bf8 {[%clk 0:01:20.7]} 29. Bb6 {[%clk 0:00:18]}
29... Qb8 {[%clk 0:01:00.6]} 30. Nd2 {[%clk 0:00:17.9]} 30... Bd7 {[%clk
0:00:57.7]} 31. c5 {[%clk 0:00:18.3]} 31... Qe8 {[%clk 0:00:55.5]} 32. Bc4
{[%clk 0:00:19]} 32... Ng5 {[%clk 0:00:55.5]} 33. Ra1 {[%clk 0:00:18.8]} 33...
Qe7 {[%clk 0:00:55.5]} 34. Qb3 {[%clk 0:00:19.3]} 34... Nxh3+ {[%clk 0:00:55.4]}
35. gxh3 {[%clk 0:00:19.7]} 35... Qg5+ {[%clk 0:00:56.3]} 36. Qg3 {[%clk
0:00:20.8]} 36... Qxd2 {[%clk 0:00:38]} 37. Qxg6+ {[%clk 0:00:21.5]} 37... Kh8
{[%clk 0:00:39.5]} 38. Qxf7 {[%clk 0:00:21.3]} 38... Bg7 {[%clk 0:00:38.2]} 39.
Ra3 {[%clk 0:00:19.9]} 39... Rf8 {[%clk 0:00:38]} 40. Qe7 {[%clk 0:00:16.1]}
40... Qxf2+ {[%clk 0:00:36.7]} 41. Kh1 {[%clk 0:00:16.3]} 41... Qe1+ {[%clk
0:00:36.2]} 42. Kg2 {[%clk 0:00:15.8]} 42... Rf2+ {[%clk 0:00:37.4]} 43. Kg3
{[%clk 0:00:15.9]} 43... Qg1+ {[%clk 0:00:37.7]} 44. Kh4 {[%clk 0:00:14.9]}
44... Bf6+ {[%clk 0:00:34.4]} 45. Qxf6+ {[%clk 0:00:13]} 45... Rxf6 {[%clk
0:00:35.2]} 46. Rg3 {[%clk 0:00:13.8]} 46... Rf4+ {[%clk 0:00:36.1]} 47. Kh5
{[%clk 0:00:14.4]} 47... Qxg3 {[%clk 0:00:36.5]} 0-1